{"text_format":"3","workbook":"xlsx","n_sheets":3,"sheets":["נתוני הפניות","מכירות חזויות ","תחזית משוקללת חודשית"],"not_rendered":{"charts":1,"defined_names":10},"read":"whole","date_system":"1900"}

{"sheet":"נתוני הפניות","index":0,"n_rows":9,"n_cols":10,"rows_kept":9}
[null,"שם החברה"]
[null,"מעקב מפורט אחר הפניות"]
[null,{"$f":"TODAY()","v":"2022-04-08"}]
[{"$nulls":8},{"$f":"שם_החברה","v":"שם החברה"},"סודי"]
[null,"שם הפניה","איש קשר של הפניה","מקור \nהפניה","אזור \nהפניה","סוג \nהפניה","הזדמנות פוטנציאלית","סיכוי\n למכירה","סגירת\n תחזית","תחזית\n משוקללת"]
[null,"A.‎ Datum Corporation",{"$nulls":3},"אסטרטגית",{"v":300000,"d":"₪ 300,000.00"},{"v":0.9,"d":"90%"},"ינואר",{"$f":"IFERROR(IF(נתוני_הפניות[[#This Row],[סיכוי\n למכירה]]<>\"\",נתוני_הפניות[[#This Row],[סיכוי\n למכירה]]*נתוני_הפניות[[#This Row],[הזדמנות פוטנציאלית]],\"\"),\"\")","v":{"v":270000,"d":"₪ 270,000.00"}}]
[null,"Adventure Works",{"$nulls":3},"אסטרטגית",{"v":200000,"d":"₪ 200,000.00"},{"v":0.1,"d":"10%"},"פברואר",{"$f":"IFERROR(IF(נתוני_הפניות[[#This Row],[סיכוי\n למכירה]]<>\"\",נתוני_הפניות[[#This Row],[סיכוי\n למכירה]]*נתוני_הפניות[[#This Row],[הזדמנות פוטנציאלית]],\"\"),\"\")","v":{"v":20000,"d":"₪ 20,000.00"}}]
[null,"Alpine Ski House",{"$nulls":3},"טקטית",{"v":100000,"d":"₪ 100,000.00"},{"v":0.2,"d":"20%"},"מרץ",{"$f":"IFERROR(IF(נתוני_הפניות[[#This Row],[סיכוי\n למכירה]]<>\"\",נתוני_הפניות[[#This Row],[סיכוי\n למכירה]]*נתוני_הפניות[[#This Row],[הזדמנות פוטנציאלית]],\"\"),\"\")","v":{"v":20000,"d":"₪ 20,000.00"}}]
[null,"סה\"כ",{"$nulls":4},{"$f":"SUBTOTAL(109,נתוני_הפניות[הזדמנות פוטנציאלית])","v":{"v":600000,"d":"₪ 600,000.00"}},null,null,{"$f":"SUBTOTAL(109,נתוני_הפניות[תחזית\n משוקללת])","v":{"v":310000,"d":"₪ 310,000.00"}}]

{"sheet":"מכירות חזויות ","index":1,"n_rows":21,"n_cols":14,"rows_kept":21,"merged":[[3,12,3,13]]}
[null,{"$f":"שם_החברה","v":"שם החברה"}]
[null,"מכירות חזויות"]
[null,{"$f":"TrackerDate","v":"2022-04-08"}]
[{"$nulls":11},{"$f":"שם_החברה","v":"שם החברה"},"סודי"]
[null,"שם הפניה","תחזית \nינואר","תחזית \nפברואר","תחזית \nמרץ","תחזית \nאפריל","תחזית \nמאי","תחזית \nיוני","תחזית \nיולי","תחזית \nאוגוסט","תחזית \nספטמבר","תחזית \nאוקטובר","תחזית \nנובמבר","תחזית \nדצמבר"]
[null,{"$f":"IFERROR(IF(AND(נתוני_הפניות[[#This Row],[שם הפניה]] <> \"\", ROW(מכירות_חזויות[שם הפניה])<>LastEntry),נתוני_הפניות[שם הפניה], \"\"),\"\")","v":"A.‎ Datum Corporation"},{"$f":"IFERROR(IF(נתוני_הפניות[[#This Row],[סגירת\n תחזית]] <>\"\",IF(נתוני_הפניות[[#This Row],[סגירת\n תחזית]]= \"ינואר\",נתוני_הפניות[תחזית\n משוקללת],0),\"\"),\"\")","v":{"v":270000,"d":"₪ 270,000"}},{"$f":"IFERROR(IF(נתוני_הפניות[[#This Row],[סגירת\n תחזית]] <>\"\",IF(נתוני_הפניות[[#This Row],[סגירת\n תחזית]] = \"פברואר\",נתוני_הפניות[תחזית\n משוקללת],0),\"\"),\"\")","v":{"v":0,"d":"₪ 0"}},{"$f":"IFERROR(IF(נתוני_הפניות[[#This Row],[סגירת\n תחזית]] <>\"\",IF(נתוני_הפניות[[#This Row],[סגירת\n תחזית]] = \"מרץ\",נתוני_הפניות[תחזית\n משוקללת],0),\"\"),\"\")","v":{"v":0,"d":"₪ 0"}},{"$f":"IFERROR(IF(נתוני_הפניות[[#This Row],[סגירת\n תחזית]] <>\"\",IF(נתוני_הפניות[[#This Row],[סגירת\n תחזית]] = \"תחזית\",נתוני_הפניות[תחזית\n משוקללת],0),\"\"),\"\")","v":{"v":0,"d":"₪ 0"}},{"$f":"IFERROR(IF(נתוני_הפניות[[#This Row],[סגירת\n תחזית]] <>\"\",IF(נתוני_הפניות[[#This Row],[סגירת\n תחזית]] = \"תחזית\",נתוני_הפניות[תחזית\n משוקללת],0),\"\"),\"\")","v":{"v":0,"d":"₪ 0"}},{"$f":"IFERROR(IF(נתוני_הפניות[[#This Row],[סגירת\n תחזית]] <>\"\",IF(נתוני_הפניות[[#This Row],[סגירת\n תחזית]] = \"תחזית\",נתוני_הפניות[תחזית\n משוקללת],0),\"\"),\"\")","v":{"v":0,"d":"₪ 0"}},{"$f":"IFERROR(IF(נתוני_הפניות[[#This Row],[סגירת\n תחזית]] <>\"\",IF(נתוני_הפניות[[#This Row],[סגירת\n תחזית]] = \"July\",נתוני_הפניות[תחזית\n משוקללת],0),\"\"),\"\")","v":{"v":0,"d":"₪ 0"}},{"$f":"IFERROR(IF(נתוני_הפניות[[#This Row],[סגירת\n תחזית]] <>\"\",IF(נתוני_הפניות[[#This Row],[סגירת\n תחזית]] = \"תחזית\",נתוני_הפניות[תחזית\n משוקללת],0),\"\"),\"\")","v":{"v":0,"d":"₪ 0"}},{"$f":"IFERROR(IF(נתוני_הפניות[[#This Row],[סגירת\n תחזית]] <>\"\",IF(נתוני_הפניות[[#This Row],[סגירת\n תחזית]] = \"תחזית\",נתוני_הפניות[תחזית\n משוקללת],0),\"\"),\"\")","v":{"v":0,"d":"₪ 0"}},{"$f":"IFERROR(IF(נתוני_הפניות[[#This Row],[סגירת\n תחזית]] <>\"\",IF(נתוני_הפניות[[#This Row],[סגירת\n תחזית]] = \"תחזית\",נתוני_הפניות[תחזית\n משוקללת],0),\"\"),\"\")","v":{"v":0,"d":"₪ 0"}},{"$f":"IFERROR(IF(נתוני_הפניות[[#This Row],[סגירת\n תחזית]] <>\"\",IF(נתוני_הפניות[[#This Row],[סגירת\n תחזית]] = \"תחזית\",נתוני_הפניות[תחזית\n משוקללת],0),\"\"),\"\")","v":{"v":0,"d":"₪ 0"}},{"$f":"IFERROR(IF(נתוני_הפניות[[#This Row],[סגירת\n תחזית]] <>\"\",IF(נתוני_הפניות[[#This Row],[סגירת\n תחזית]] = \"תחזית\",נתוני_הפניות[תחזית\n משוקללת],0),\"\"),\"\")","v":{"v":0,"d":"₪ 0"}}]
[null,{"$f":"IFERROR(IF(AND(נתוני_הפניות[[#This Row],[שם הפניה]] <> \"\", ROW(מכירות_חזויות[שם הפניה])<>LastEntry),נתוני_הפניות[שם הפניה], \"\"),\"\")","v":"Adventure Works"},{"$f":"IFERROR(IF(נתוני_הפניות[[#This Row],[סגירת\n תחזית]] <>\"\",IF(נתוני_הפניות[[#This Row],[סגירת\n תחזית]]= \"ינואר\",נתוני_הפניות[תחזית\n משוקללת],0),\"\"),\"\")","v":{"v":0,"d":"₪ 0"}},{"$f":"IFERROR(IF(נתוני_הפניות[[#This Row],[סגירת\n תחזית]] <>\"\",IF(נתוני_הפניות[[#This Row],[סגירת\n תחזית]] = \"פברואר\",נתוני_הפניות[תחזית\n משוקללת],0),\"\"),\"\")","v":{"v":20000,"d":"₪ 20,000"}},{"$f":"IFERROR(IF(נתוני_הפניות[[#This Row],[סגירת\n תחזית]] <>\"\",IF(נתוני_הפניות[[#This Row],[סגירת\n תחזית]] = \"מרץ\",נתוני_הפניות[תחזית\n משוקללת],0),\"\"),\"\")","v":{"v":0,"d":"₪ 0"}},{"$f":"IFERROR(IF(נתוני_הפניות[[#This Row],[סגירת\n תחזית]] <>\"\",IF(נתוני_הפניות[[#This Row],[סגירת\n תחזית]] = \"תחזית\",נתוני_הפניות[תחזית\n משוקללת],0),\"\"),\"\")","v":{"v":0,"d":"₪ 0"}},{"$f":"IFERROR(IF(נתוני_הפניות[[#This Row],[סגירת\n תחזית]] <>\"\",IF(נתוני_הפניות[[#This Row],[סגירת\n תחזית]] = \"תחזית\",נתוני_הפניות[תחזית\n משוקללת],0),\"\"),\"\")","v":{"v":0,"d":"₪ 0"}},{"$f":"IFERROR(IF(נתוני_הפניות[[#This Row],[סגירת\n תחזית]] <>\"\",IF(נתוני_הפניות[[#This Row],[סגירת\n תחזית]] = \"תחזית\",נתוני_הפניות[תחזית\n משוקללת],0),\"\"),\"\")","v":{"v":0,"d":"₪ 0"}},{"$f":"IFERROR(IF(נתוני_הפניות[[#This Row],[סגירת\n תחזית]] <>\"\",IF(נתוני_הפניות[[#This Row],[סגירת\n תחזית]] = \"July\",נתוני_הפניות[תחזית\n משוקללת],0),\"\"),\"\")","v":{"v":0,"d":"₪ 0"}},{"$f":"IFERROR(IF(נתוני_הפניות[[#This Row],[סגירת\n תחזית]] <>\"\",IF(נתוני_הפניות[[#This Row],[סגירת\n תחזית]] = \"תחזית\",נתוני_הפניות[תחזית\n משוקללת],0),\"\"),\"\")","v":{"v":0,"d":"₪ 0"}},{"$f":"IFERROR(IF(נתוני_הפניות[[#This Row],[סגירת\n תחזית]] <>\"\",IF(נתוני_הפניות[[#This Row],[סגירת\n תחזית]] = \"תחזית\",נתוני_הפניות[תחזית\n משוקללת],0),\"\"),\"\")","v":{"v":0,"d":"₪ 0"}},{"$f":"IFERROR(IF(נתוני_הפניות[[#This Row],[סגירת\n תחזית]] <>\"\",IF(נתוני_הפניות[[#This Row],[סגירת\n תחזית]] = \"תחזית\",נתוני_הפניות[תחזית\n משוקללת],0),\"\"),\"\")","v":{"v":0,"d":"₪ 0"}},{"$f":"IFERROR(IF(נתוני_הפניות[[#This Row],[סגירת\n תחזית]] <>\"\",IF(נתוני_הפניות[[#This Row],[סגירת\n תחזית]] = \"תחזית\",נתוני_הפניות[תחזית\n משוקללת],0),\"\"),\"\")","v":{"v":0,"d":"₪ 0"}},{"$f":"IFERROR(IF(נתוני_הפניות[[#This Row],[סגירת\n תחזית]] <>\"\",IF(נתוני_הפניות[[#This Row],[סגירת\n תחזית]] = \"תחזית\",נתוני_הפניות[תחזית\n משוקללת],0),\"\"),\"\")","v":{"v":0,"d":"₪ 0"}}]
[null,{"$f":"IFERROR(IF(AND(נתוני_הפניות[[#This Row],[שם הפניה]] <> \"\", ROW(מכירות_חזויות[שם הפניה])<>LastEntry),נתוני_הפניות[שם הפניה], \"\"),\"\")","v":"Alpine Ski House"},{"$f":"IFERROR(IF(נתוני_הפניות[[#This Row],[סגירת\n תחזית]] <>\"\",IF(נתוני_הפניות[[#This Row],[סגירת\n תחזית]]= \"ינואר\",נתוני_הפניות[תחזית\n משוקללת],0),\"\"),\"\")","v":{"v":0,"d":"₪ 0"}},{"$f":"IFERROR(IF(נתוני_הפניות[[#This Row],[סגירת\n תחזית]] <>\"\",IF(נתוני_הפניות[[#This Row],[סגירת\n תחזית]] = \"פברואר\",נתוני_הפניות[תחזית\n משוקללת],0),\"\"),\"\")","v":{"v":0,"d":"₪ 0"}},{"$f":"IFERROR(IF(נתוני_הפניות[[#This Row],[סגירת\n תחזית]] <>\"\",IF(נתוני_הפניות[[#This Row],[סגירת\n תחזית]] = \"מרץ\",נתוני_הפניות[תחזית\n משוקללת],0),\"\"),\"\")","v":{"v":20000,"d":"₪ 20,000"}},{"$f":"IFERROR(IF(נתוני_הפניות[[#This Row],[סגירת\n תחזית]] <>\"\",IF(נתוני_הפניות[[#This Row],[סגירת\n תחזית]] = \"תחזית\",נתוני_הפניות[תחזית\n משוקללת],0),\"\"),\"\")","v":{"v":0,"d":"₪ 0"}},{"$f":"IFERROR(IF(נתוני_הפניות[[#This Row],[סגירת\n תחזית]] <>\"\",IF(נתוני_הפניות[[#This Row],[סגירת\n תחזית]] = \"תחזית\",נתוני_הפניות[תחזית\n משוקללת],0),\"\"),\"\")","v":{"v":0,"d":"₪ 0"}},{"$f":"IFERROR(IF(נתוני_הפניות[[#This Row],[סגירת\n תחזית]] <>\"\",IF(נתוני_הפניות[[#This Row],[סגירת\n תחזית]] = \"תחזית\",נתוני_הפניות[תחזית\n משוקללת],0),\"\"),\"\")","v":{"v":0,"d":"₪ 0"}},{"$f":"IFERROR(IF(נתוני_הפניות[[#This Row],[סגירת\n תחזית]] <>\"\",IF(נתוני_הפניות[[#This Row],[סגירת\n תחזית]] = \"July\",נתוני_הפניות[תחזית\n משוקללת],0),\"\"),\"\")","v":{"v":0,"d":"₪ 0"}},{"$f":"IFERROR(IF(נתוני_הפניות[[#This Row],[סגירת\n תחזית]] <>\"\",IF(נתוני_הפניות[[#This Row],[סגירת\n תחזית]] = \"תחזית\",נתוני_הפניות[תחזית\n משוקללת],0),\"\"),\"\")","v":{"v":0,"d":"₪ 0"}},{"$f":"IFERROR(IF(נתוני_הפניות[[#This Row],[סגירת\n תחזית]] <>\"\",IF(נתוני_הפניות[[#This Row],[סגירת\n תחזית]] = \"תחזית\",נתוני_הפניות[תחזית\n משוקללת],0),\"\"),\"\")","v":{"v":0,"d":"₪ 0"}},{"$f":"IFERROR(IF(נתוני_הפניות[[#This Row],[סגירת\n תחזית]] <>\"\",IF(נתוני_הפניות[[#This Row],[סגירת\n תחזית]] = \"תחזית\",נתוני_הפניות[תחזית\n משוקללת],0),\"\"),\"\")","v":{"v":0,"d":"₪ 0"}},{"$f":"IFERROR(IF(נתוני_הפניות[[#This Row],[סגירת\n תחזית]] <>\"\",IF(נתוני_הפניות[[#This Row],[סגירת\n תחזית]] = \"תחזית\",נתוני_הפניות[תחזית\n משוקללת],0),\"\"),\"\")","v":{"v":0,"d":"₪ 0"}},{"$f":"IFERROR(IF(נתוני_הפניות[[#This Row],[סגירת\n תחזית]] <>\"\",IF(נתוני_הפניות[[#This Row],[סגירת\n תחזית]] = \"תחזית\",נתוני_הפניות[תחזית\n משוקללת],0),\"\"),\"\")","v":{"v":0,"d":"₪ 0"}}]
[null,{"$f":"IFERROR(IF(AND(נתוני_הפניות[[#This Row],[שם הפניה]] <> \"\", ROW(מכירות_חזויות[שם הפניה])<>LastEntry),נתוני_הפניות[שם הפניה], \"\"),\"\")","v":""},{"$f":"IFERROR(IF(נתוני_הפניות[[#This Row],[סגירת\n תחזית]] <>\"\",IF(נתוני_הפניות[[#This Row],[סגירת\n תחזית]]= \"ינואר\",נתוני_הפניות[תחזית\n משוקללת],0),\"\"),\"\")","v":""},{"$f":"IFERROR(IF(נתוני_הפניות[[#This Row],[סגירת\n תחזית]] <>\"\",IF(נתוני_הפניות[[#This Row],[סגירת\n תחזית]] = \"פברואר\",נתוני_הפניות[תחזית\n משוקללת],0),\"\"),\"\")","v":""},{"$f":"IFERROR(IF(נתוני_הפניות[[#This Row],[סגירת\n תחזית]] <>\"\",IF(נתוני_הפניות[[#This Row],[סגירת\n תחזית]] = \"מרץ\",נתוני_הפניות[תחזית\n משוקללת],0),\"\"),\"\")","v":""},{"$f":"IFERROR(IF(נתוני_הפניות[[#This Row],[סגירת\n תחזית]] <>\"\",IF(נתוני_הפניות[[#This Row],[סגירת\n תחזית]] = \"תחזית\",נתוני_הפניות[תחזית\n משוקללת],0),\"\"),\"\")","v":""},{"$f":"IFERROR(IF(נתוני_הפניות[[#This Row],[סגירת\n תחזית]] <>\"\",IF(נתוני_הפניות[[#This Row],[סגירת\n תחזית]] = \"תחזית\",נתוני_הפניות[תחזית\n משוקללת],0),\"\"),\"\")","v":""},{"$f":"IFERROR(IF(נתוני_הפניות[[#This Row],[סגירת\n תחזית]] <>\"\",IF(נתוני_הפניות[[#This Row],[סגירת\n תחזית]] = \"תחזית\",נתוני_הפניות[תחזית\n משוקללת],0),\"\"),\"\")","v":""},{"$f":"IFERROR(IF(נתוני_הפניות[[#This Row],[סגירת\n תחזית]] <>\"\",IF(נתוני_הפניות[[#This Row],[סגירת\n תחזית]] = \"July\",נתוני_הפניות[תחזית\n משוקללת],0),\"\"),\"\")","v":""},{"$f":"IFERROR(IF(נתוני_הפניות[[#This Row],[סגירת\n תחזית]] <>\"\",IF(נתוני_הפניות[[#This Row],[סגירת\n תחזית]] = \"תחזית\",נתוני_הפניות[תחזית\n משוקללת],0),\"\"),\"\")","v":""},{"$f":"IFERROR(IF(נתוני_הפניות[[#This Row],[סגירת\n תחזית]] <>\"\",IF(נתוני_הפניות[[#This Row],[סגירת\n תחזית]] = \"תחזית\",נתוני_הפניות[תחזית\n משוקללת],0),\"\"),\"\")","v":""},{"$f":"IFERROR(IF(נתוני_הפניות[[#This Row],[סגירת\n תחזית]] <>\"\",IF(נתוני_הפניות[[#This Row],[סגירת\n תחזית]] = \"תחזית\",נתוני_הפניות[תחזית\n משוקללת],0),\"\"),\"\")","v":""},{"$f":"IFERROR(IF(נתוני_הפניות[[#This Row],[סגירת\n תחזית]] <>\"\",IF(נתוני_הפניות[[#This Row],[סגירת\n תחזית]] = \"תחזית\",נתוני_הפניות[תחזית\n משוקללת],0),\"\"),\"\")","v":""},{"$f":"IFERROR(IF(נתוני_הפניות[[#This Row],[סגירת\n תחזית]] <>\"\",IF(נתוני_הפניות[[#This Row],[סגירת\n תחזית]] = \"תחזית\",נתוני_הפניות[תחזית\n משוקללת],0),\"\"),\"\")","v":""}]
[null,{"$f":"IFERROR(IF(AND(נתוני_הפניות[[#This Row],[שם הפניה]] <> \"\", ROW(מכירות_חזויות[שם הפניה])<>LastEntry),נתוני_הפניות[שם הפניה], \"\"),\"\")","v":""},{"$f":"IFERROR(IF(נתוני_הפניות[[#This Row],[סגירת\n תחזית]] <>\"\",IF(נתוני_הפניות[[#This Row],[סגירת\n תחזית]]= \"ינואר\",נתוני_הפניות[תחזית\n משוקללת],0),\"\"),\"\")","v":""},{"$f":"IFERROR(IF(נתוני_הפניות[[#This Row],[סגירת\n תחזית]] <>\"\",IF(נתוני_הפניות[[#This Row],[סגירת\n תחזית]] = \"פברואר\",נתוני_הפניות[תחזית\n משוקללת],0),\"\"),\"\")","v":""},{"$f":"IFERROR(IF(נתוני_הפניות[[#This Row],[סגירת\n תחזית]] <>\"\",IF(נתוני_הפניות[[#This Row],[סגירת\n תחזית]] = \"מרץ\",נתוני_הפניות[תחזית\n משוקללת],0),\"\"),\"\")","v":""},{"$f":"IFERROR(IF(נתוני_הפניות[[#This Row],[סגירת\n תחזית]] <>\"\",IF(נתוני_הפניות[[#This Row],[סגירת\n תחזית]] = \"תחזית\",נתוני_הפניות[תחזית\n משוקללת],0),\"\"),\"\")","v":""},{"$f":"IFERROR(IF(נתוני_הפניות[[#This Row],[סגירת\n תחזית]] <>\"\",IF(נתוני_הפניות[[#This Row],[סגירת\n תחזית]] = \"תחזית\",נתוני_הפניות[תחזית\n משוקללת],0),\"\"),\"\")","v":""},{"$f":"IFERROR(IF(נתוני_הפניות[[#This Row],[סגירת\n תחזית]] <>\"\",IF(נתוני_הפניות[[#This Row],[סגירת\n תחזית]] = \"תחזית\",נתוני_הפניות[תחזית\n משוקללת],0),\"\"),\"\")","v":""},{"$f":"IFERROR(IF(נתוני_הפניות[[#This Row],[סגירת\n תחזית]] <>\"\",IF(נתוני_הפניות[[#This Row],[סגירת\n תחזית]] = \"July\",נתוני_הפניות[תחזית\n משוקללת],0),\"\"),\"\")","v":""},{"$f":"IFERROR(IF(נתוני_הפניות[[#This Row],[סגירת\n תחזית]] <>\"\",IF(נתוני_הפניות[[#This Row],[סגירת\n תחזית]] = \"תחזית\",נתוני_הפניות[תחזית\n משוקללת],0),\"\"),\"\")","v":""},{"$f":"IFERROR(IF(נתוני_הפניות[[#This Row],[סגירת\n תחזית]] <>\"\",IF(נתוני_הפניות[[#This Row],[סגירת\n תחזית]] = \"תחזית\",נתוני_הפניות[תחזית\n משוקללת],0),\"\"),\"\")","v":""},{"$f":"IFERROR(IF(נתוני_הפניות[[#This Row],[סגירת\n תחזית]] <>\"\",IF(נתוני_הפניות[[#This Row],[סגירת\n תחזית]] = \"תחזית\",נתוני_הפניות[תחזית\n משוקללת],0),\"\"),\"\")","v":""},{"$f":"IFERROR(IF(נתוני_הפניות[[#This Row],[סגירת\n תחזית]] <>\"\",IF(נתוני_הפניות[[#This Row],[סגירת\n תחזית]] = \"תחזית\",נתוני_הפניות[תחזית\n משוקללת],0),\"\"),\"\")","v":""},{"$f":"IFERROR(IF(נתוני_הפניות[[#This Row],[סגירת\n תחזית]] <>\"\",IF(נתוני_הפניות[[#This Row],[סגירת\n תחזית]] = \"תחזית\",נתוני_הפניות[תחזית\n משוקללת],0),\"\"),\"\")","v":""}]
[null,{"$f":"IFERROR(IF(AND(נתוני_הפניות[[#This Row],[שם הפניה]] <> \"\", ROW(מכירות_חזויות[שם הפניה])<>LastEntry),נתוני_הפניות[שם הפניה], \"\"),\"\")","v":""},{"$f":"IFERROR(IF(נתוני_הפניות[[#This Row],[סגירת\n תחזית]] <>\"\",IF(נתוני_הפניות[[#This Row],[סגירת\n תחזית]]= \"ינואר\",נתוני_הפניות[תחזית\n משוקללת],0),\"\"),\"\")","v":""},{"$f":"IFERROR(IF(נתוני_הפניות[[#This Row],[סגירת\n תחזית]] <>\"\",IF(נתוני_הפניות[[#This Row],[סגירת\n תחזית]] = \"פברואר\",נתוני_הפניות[תחזית\n משוקללת],0),\"\"),\"\")","v":""},{"$f":"IFERROR(IF(נתוני_הפניות[[#This Row],[סגירת\n תחזית]] <>\"\",IF(נתוני_הפניות[[#This Row],[סגירת\n תחזית]] = \"מרץ\",נתוני_הפניות[תחזית\n משוקללת],0),\"\"),\"\")","v":""},{"$f":"IFERROR(IF(נתוני_הפניות[[#This Row],[סגירת\n תחזית]] <>\"\",IF(נתוני_הפניות[[#This Row],[סגירת\n תחזית]] = \"תחזית\",נתוני_הפניות[תחזית\n משוקללת],0),\"\"),\"\")","v":""},{"$f":"IFERROR(IF(נתוני_הפניות[[#This Row],[סגירת\n תחזית]] <>\"\",IF(נתוני_הפניות[[#This Row],[סגירת\n תחזית]] = \"תחזית\",נתוני_הפניות[תחזית\n משוקללת],0),\"\"),\"\")","v":""},{"$f":"IFERROR(IF(נתוני_הפניות[[#This Row],[סגירת\n תחזית]] <>\"\",IF(נתוני_הפניות[[#This Row],[סגירת\n תחזית]] = \"תחזית\",נתוני_הפניות[תחזית\n משוקללת],0),\"\"),\"\")","v":""},{"$f":"IFERROR(IF(נתוני_הפניות[[#This Row],[סגירת\n תחזית]] <>\"\",IF(נתוני_הפניות[[#This Row],[סגירת\n תחזית]] = \"July\",נתוני_הפניות[תחזית\n משוקללת],0),\"\"),\"\")","v":""},{"$f":"IFERROR(IF(נתוני_הפניות[[#This Row],[סגירת\n תחזית]] <>\"\",IF(נתוני_הפניות[[#This Row],[סגירת\n תחזית]] = \"תחזית\",נתוני_הפניות[תחזית\n משוקללת],0),\"\"),\"\")","v":""},{"$f":"IFERROR(IF(נתוני_הפניות[[#This Row],[סגירת\n תחזית]] <>\"\",IF(נתוני_הפניות[[#This Row],[סגירת\n תחזית]] = \"תחזית\",נתוני_הפניות[תחזית\n משוקללת],0),\"\"),\"\")","v":""},{"$f":"IFERROR(IF(נתוני_הפניות[[#This Row],[סגירת\n תחזית]] <>\"\",IF(נתוני_הפניות[[#This Row],[סגירת\n תחזית]] = \"תחזית\",נתוני_הפניות[תחזית\n משוקללת],0),\"\"),\"\")","v":""},{"$f":"IFERROR(IF(נתוני_הפניות[[#This Row],[סגירת\n תחזית]] <>\"\",IF(נתוני_הפניות[[#This Row],[סגירת\n תחזית]] = \"תחזית\",נתוני_הפניות[תחזית\n משוקללת],0),\"\"),\"\")","v":""},{"$f":"IFERROR(IF(נתוני_הפניות[[#This Row],[סגירת\n תחזית]] <>\"\",IF(נתוני_הפניות[[#This Row],[סגירת\n תחזית]] = \"תחזית\",נתוני_הפניות[תחזית\n משוקללת],0),\"\"),\"\")","v":""}]
[null,{"$f":"IFERROR(IF(AND(נתוני_הפניות[[#This Row],[שם הפניה]] <> \"\", ROW(מכירות_חזויות[שם הפניה])<>LastEntry),נתוני_הפניות[שם הפניה], \"\"),\"\")","v":""},{"$f":"IFERROR(IF(נתוני_הפניות[[#This Row],[סגירת\n תחזית]] <>\"\",IF(נתוני_הפניות[[#This Row],[סגירת\n תחזית]]= \"ינואר\",נתוני_הפניות[תחזית\n משוקללת],0),\"\"),\"\")","v":""},{"$f":"IFERROR(IF(נתוני_הפניות[[#This Row],[סגירת\n תחזית]] <>\"\",IF(נתוני_הפניות[[#This Row],[סגירת\n תחזית]] = \"פברואר\",נתוני_הפניות[תחזית\n משוקללת],0),\"\"),\"\")","v":""},{"$f":"IFERROR(IF(נתוני_הפניות[[#This Row],[סגירת\n תחזית]] <>\"\",IF(נתוני_הפניות[[#This Row],[סגירת\n תחזית]] = \"מרץ\",נתוני_הפניות[תחזית\n משוקללת],0),\"\"),\"\")","v":""},{"$f":"IFERROR(IF(נתוני_הפניות[[#This Row],[סגירת\n תחזית]] <>\"\",IF(נתוני_הפניות[[#This Row],[סגירת\n תחזית]] = \"תחזית\",נתוני_הפניות[תחזית\n משוקללת],0),\"\"),\"\")","v":""},{"$f":"IFERROR(IF(נתוני_הפניות[[#This Row],[סגירת\n תחזית]] <>\"\",IF(נתוני_הפניות[[#This Row],[סגירת\n תחזית]] = \"תחזית\",נתוני_הפניות[תחזית\n משוקללת],0),\"\"),\"\")","v":""},{"$f":"IFERROR(IF(נתוני_הפניות[[#This Row],[סגירת\n תחזית]] <>\"\",IF(נתוני_הפניות[[#This Row],[סגירת\n תחזית]] = \"תחזית\",נתוני_הפניות[תחזית\n משוקללת],0),\"\"),\"\")","v":""},{"$f":"IFERROR(IF(נתוני_הפניות[[#This Row],[סגירת\n תחזית]] <>\"\",IF(נתוני_הפניות[[#This Row],[סגירת\n תחזית]] = \"July\",נתוני_הפניות[תחזית\n משוקללת],0),\"\"),\"\")","v":""},{"$f":"IFERROR(IF(נתוני_הפניות[[#This Row],[סגירת\n תחזית]] <>\"\",IF(נתוני_הפניות[[#This Row],[סגירת\n תחזית]] = \"תחזית\",נתוני_הפניות[תחזית\n משוקללת],0),\"\"),\"\")","v":""},{"$f":"IFERROR(IF(נתוני_הפניות[[#This Row],[סגירת\n תחזית]] <>\"\",IF(נתוני_הפניות[[#This Row],[סגירת\n תחזית]] = \"תחזית\",נתוני_הפניות[תחזית\n משוקללת],0),\"\"),\"\")","v":""},{"$f":"IFERROR(IF(נתוני_הפניות[[#This Row],[סגירת\n תחזית]] <>\"\",IF(נתוני_הפניות[[#This Row],[סגירת\n תחזית]] = \"תחזית\",נתוני_הפניות[תחזית\n משוקללת],0),\"\"),\"\")","v":""},{"$f":"IFERROR(IF(נתוני_הפניות[[#This Row],[סגירת\n תחזית]] <>\"\",IF(נתוני_הפניות[[#This Row],[סגירת\n תחזית]] = \"תחזית\",נתוני_הפניות[תחזית\n משוקללת],0),\"\"),\"\")","v":""},{"$f":"IFERROR(IF(נתוני_הפניות[[#This Row],[סגירת\n תחזית]] <>\"\",IF(נתוני_הפניות[[#This Row],[סגירת\n תחזית]] = \"תחזית\",נתוני_הפניות[תחזית\n משוקללת],0),\"\"),\"\")","v":""}]
[null,{"$f":"IFERROR(IF(AND(נתוני_הפניות[[#This Row],[שם הפניה]] <> \"\", ROW(מכירות_חזויות[שם הפניה])<>LastEntry),נתוני_הפניות[שם הפניה], \"\"),\"\")","v":""},{"$f":"IFERROR(IF(נתוני_הפניות[[#This Row],[סגירת\n תחזית]] <>\"\",IF(נתוני_הפניות[[#This Row],[סגירת\n תחזית]]= \"ינואר\",נתוני_הפניות[תחזית\n משוקללת],0),\"\"),\"\")","v":""},{"$f":"IFERROR(IF(נתוני_הפניות[[#This Row],[סגירת\n תחזית]] <>\"\",IF(נתוני_הפניות[[#This Row],[סגירת\n תחזית]] = \"פברואר\",נתוני_הפניות[תחזית\n משוקללת],0),\"\"),\"\")","v":""},{"$f":"IFERROR(IF(נתוני_הפניות[[#This Row],[סגירת\n תחזית]] <>\"\",IF(נתוני_הפניות[[#This Row],[סגירת\n תחזית]] = \"מרץ\",נתוני_הפניות[תחזית\n משוקללת],0),\"\"),\"\")","v":""},{"$f":"IFERROR(IF(נתוני_הפניות[[#This Row],[סגירת\n תחזית]] <>\"\",IF(נתוני_הפניות[[#This Row],[סגירת\n תחזית]] = \"תחזית\",נתוני_הפניות[תחזית\n משוקללת],0),\"\"),\"\")","v":""},{"$f":"IFERROR(IF(נתוני_הפניות[[#This Row],[סגירת\n תחזית]] <>\"\",IF(נתוני_הפניות[[#This Row],[סגירת\n תחזית]] = \"תחזית\",נתוני_הפניות[תחזית\n משוקללת],0),\"\"),\"\")","v":""},{"$f":"IFERROR(IF(נתוני_הפניות[[#This Row],[סגירת\n תחזית]] <>\"\",IF(נתוני_הפניות[[#This Row],[סגירת\n תחזית]] = \"תחזית\",נתוני_הפניות[תחזית\n משוקללת],0),\"\"),\"\")","v":""},{"$f":"IFERROR(IF(נתוני_הפניות[[#This Row],[סגירת\n תחזית]] <>\"\",IF(נתוני_הפניות[[#This Row],[סגירת\n תחזית]] = \"July\",נתוני_הפניות[תחזית\n משוקללת],0),\"\"),\"\")","v":""},{"$f":"IFERROR(IF(נתוני_הפניות[[#This Row],[סגירת\n תחזית]] <>\"\",IF(נתוני_הפניות[[#This Row],[סגירת\n תחזית]] = \"תחזית\",נתוני_הפניות[תחזית\n משוקללת],0),\"\"),\"\")","v":""},{"$f":"IFERROR(IF(נתוני_הפניות[[#This Row],[סגירת\n תחזית]] <>\"\",IF(נתוני_הפניות[[#This Row],[סגירת\n תחזית]] = \"תחזית\",נתוני_הפניות[תחזית\n משוקללת],0),\"\"),\"\")","v":""},{"$f":"IFERROR(IF(נתוני_הפניות[[#This Row],[סגירת\n תחזית]] <>\"\",IF(נתוני_הפניות[[#This Row],[סגירת\n תחזית]] = \"תחזית\",נתוני_הפניות[תחזית\n משוקללת],0),\"\"),\"\")","v":""},{"$f":"IFERROR(IF(נתוני_הפניות[[#This Row],[סגירת\n תחזית]] <>\"\",IF(נתוני_הפניות[[#This Row],[סגירת\n תחזית]] = \"תחזית\",נתוני_הפניות[תחזית\n משוקללת],0),\"\"),\"\")","v":""},{"$f":"IFERROR(IF(נתוני_הפניות[[#This Row],[סגירת\n תחזית]] <>\"\",IF(נתוני_הפניות[[#This Row],[סגירת\n תחזית]] = \"תחזית\",נתוני_הפניות[תחזית\n משוקללת],0),\"\"),\"\")","v":""}]
[null,{"$f":"IFERROR(IF(AND(נתוני_הפניות[[#This Row],[שם הפניה]] <> \"\", ROW(מכירות_חזויות[שם הפניה])<>LastEntry),נתוני_הפניות[שם הפניה], \"\"),\"\")","v":""},{"$f":"IFERROR(IF(נתוני_הפניות[[#This Row],[סגירת\n תחזית]] <>\"\",IF(נתוני_הפניות[[#This Row],[סגירת\n תחזית]]= \"ינואר\",נתוני_הפניות[תחזית\n משוקללת],0),\"\"),\"\")","v":""},{"$f":"IFERROR(IF(נתוני_הפניות[[#This Row],[סגירת\n תחזית]] <>\"\",IF(נתוני_הפניות[[#This Row],[סגירת\n תחזית]] = \"פברואר\",נתוני_הפניות[תחזית\n משוקללת],0),\"\"),\"\")","v":""},{"$f":"IFERROR(IF(נתוני_הפניות[[#This Row],[סגירת\n תחזית]] <>\"\",IF(נתוני_הפניות[[#This Row],[סגירת\n תחזית]] = \"מרץ\",נתוני_הפניות[תחזית\n משוקללת],0),\"\"),\"\")","v":""},{"$f":"IFERROR(IF(נתוני_הפניות[[#This Row],[סגירת\n תחזית]] <>\"\",IF(נתוני_הפניות[[#This Row],[סגירת\n תחזית]] = \"תחזית\",נתוני_הפניות[תחזית\n משוקללת],0),\"\"),\"\")","v":""},{"$f":"IFERROR(IF(נתוני_הפניות[[#This Row],[סגירת\n תחזית]] <>\"\",IF(נתוני_הפניות[[#This Row],[סגירת\n תחזית]] = \"תחזית\",נתוני_הפניות[תחזית\n משוקללת],0),\"\"),\"\")","v":""},{"$f":"IFERROR(IF(נתוני_הפניות[[#This Row],[סגירת\n תחזית]] <>\"\",IF(נתוני_הפניות[[#This Row],[סגירת\n תחזית]] = \"תחזית\",נתוני_הפניות[תחזית\n משוקללת],0),\"\"),\"\")","v":""},{"$f":"IFERROR(IF(נתוני_הפניות[[#This Row],[סגירת\n תחזית]] <>\"\",IF(נתוני_הפניות[[#This Row],[סגירת\n תחזית]] = \"July\",נתוני_הפניות[תחזית\n משוקללת],0),\"\"),\"\")","v":""},{"$f":"IFERROR(IF(נתוני_הפניות[[#This Row],[סגירת\n תחזית]] <>\"\",IF(נתוני_הפניות[[#This Row],[סגירת\n תחזית]] = \"תחזית\",נתוני_הפניות[תחזית\n משוקללת],0),\"\"),\"\")","v":""},{"$f":"IFERROR(IF(נתוני_הפניות[[#This Row],[סגירת\n תחזית]] <>\"\",IF(נתוני_הפניות[[#This Row],[סגירת\n תחזית]] = \"תחזית\",נתוני_הפניות[תחזית\n משוקללת],0),\"\"),\"\")","v":""},{"$f":"IFERROR(IF(נתוני_הפניות[[#This Row],[סגירת\n תחזית]] <>\"\",IF(נתוני_הפניות[[#This Row],[סגירת\n תחזית]] = \"תחזית\",נתוני_הפניות[תחזית\n משוקללת],0),\"\"),\"\")","v":""},{"$f":"IFERROR(IF(נתוני_הפניות[[#This Row],[סגירת\n תחזית]] <>\"\",IF(נתוני_הפניות[[#This Row],[סגירת\n תחזית]] = \"תחזית\",נתוני_הפניות[תחזית\n משוקללת],0),\"\"),\"\")","v":""},{"$f":"IFERROR(IF(נתוני_הפניות[[#This Row],[סגירת\n תחזית]] <>\"\",IF(נתוני_הפניות[[#This Row],[סגירת\n תחזית]] = \"תחזית\",נתוני_הפניות[תחזית\n משוקללת],0),\"\"),\"\")","v":""}]
[null,{"$f":"IFERROR(IF(AND(נתוני_הפניות[[#This Row],[שם הפניה]] <> \"\", ROW(מכירות_חזויות[שם הפניה])<>LastEntry),נתוני_הפניות[שם הפניה], \"\"),\"\")","v":""},{"$f":"IFERROR(IF(נתוני_הפניות[[#This Row],[סגירת\n תחזית]] <>\"\",IF(נתוני_הפניות[[#This Row],[סגירת\n תחזית]]= \"ינואר\",נתוני_הפניות[תחזית\n משוקללת],0),\"\"),\"\")","v":""},{"$f":"IFERROR(IF(נתוני_הפניות[[#This Row],[סגירת\n תחזית]] <>\"\",IF(נתוני_הפניות[[#This Row],[סגירת\n תחזית]] = \"פברואר\",נתוני_הפניות[תחזית\n משוקללת],0),\"\"),\"\")","v":""},{"$f":"IFERROR(IF(נתוני_הפניות[[#This Row],[סגירת\n תחזית]] <>\"\",IF(נתוני_הפניות[[#This Row],[סגירת\n תחזית]] = \"מרץ\",נתוני_הפניות[תחזית\n משוקללת],0),\"\"),\"\")","v":""},{"$f":"IFERROR(IF(נתוני_הפניות[[#This Row],[סגירת\n תחזית]] <>\"\",IF(נתוני_הפניות[[#This Row],[סגירת\n תחזית]] = \"תחזית\",נתוני_הפניות[תחזית\n משוקללת],0),\"\"),\"\")","v":""},{"$f":"IFERROR(IF(נתוני_הפניות[[#This Row],[סגירת\n תחזית]] <>\"\",IF(נתוני_הפניות[[#This Row],[סגירת\n תחזית]] = \"תחזית\",נתוני_הפניות[תחזית\n משוקללת],0),\"\"),\"\")","v":""},{"$f":"IFERROR(IF(נתוני_הפניות[[#This Row],[סגירת\n תחזית]] <>\"\",IF(נתוני_הפניות[[#This Row],[סגירת\n תחזית]] = \"תחזית\",נתוני_הפניות[תחזית\n משוקללת],0),\"\"),\"\")","v":""},{"$f":"IFERROR(IF(נתוני_הפניות[[#This Row],[סגירת\n תחזית]] <>\"\",IF(נתוני_הפניות[[#This Row],[סגירת\n תחזית]] = \"July\",נתוני_הפניות[תחזית\n משוקללת],0),\"\"),\"\")","v":""},{"$f":"IFERROR(IF(נתוני_הפניות[[#This Row],[סגירת\n תחזית]] <>\"\",IF(נתוני_הפניות[[#This Row],[סגירת\n תחזית]] = \"תחזית\",נתוני_הפניות[תחזית\n משוקללת],0),\"\"),\"\")","v":""},{"$f":"IFERROR(IF(נתוני_הפניות[[#This Row],[סגירת\n תחזית]] <>\"\",IF(נתוני_הפניות[[#This Row],[סגירת\n תחזית]] = \"תחזית\",נתוני_הפניות[תחזית\n משוקללת],0),\"\"),\"\")","v":""},{"$f":"IFERROR(IF(נתוני_הפניות[[#This Row],[סגירת\n תחזית]] <>\"\",IF(נתוני_הפניות[[#This Row],[סגירת\n תחזית]] = \"תחזית\",נתוני_הפניות[תחזית\n משוקללת],0),\"\"),\"\")","v":""},{"$f":"IFERROR(IF(נתוני_הפניות[[#This Row],[סגירת\n תחזית]] <>\"\",IF(נתוני_הפניות[[#This Row],[סגירת\n תחזית]] = \"תחזית\",נתוני_הפניות[תחזית\n משוקללת],0),\"\"),\"\")","v":""},{"$f":"IFERROR(IF(נתוני_הפניות[[#This Row],[סגירת\n תחזית]] <>\"\",IF(נתוני_הפניות[[#This Row],[סגירת\n תחזית]] = \"תחזית\",נתוני_הפניות[תחזית\n משוקללת],0),\"\"),\"\")","v":""}]
[null,{"$f":"IFERROR(IF(AND(נתוני_הפניות[[#This Row],[שם הפניה]] <> \"\", ROW(מכירות_חזויות[שם הפניה])<>LastEntry),נתוני_הפניות[שם הפניה], \"\"),\"\")","v":""},{"$f":"IFERROR(IF(נתוני_הפניות[[#This Row],[סגירת\n תחזית]] <>\"\",IF(נתוני_הפניות[[#This Row],[סגירת\n תחזית]]= \"ינואר\",נתוני_הפניות[תחזית\n משוקללת],0),\"\"),\"\")","v":""},{"$f":"IFERROR(IF(נתוני_הפניות[[#This Row],[סגירת\n תחזית]] <>\"\",IF(נתוני_הפניות[[#This Row],[סגירת\n תחזית]] = \"פברואר\",נתוני_הפניות[תחזית\n משוקללת],0),\"\"),\"\")","v":""},{"$f":"IFERROR(IF(נתוני_הפניות[[#This Row],[סגירת\n תחזית]] <>\"\",IF(נתוני_הפניות[[#This Row],[סגירת\n תחזית]] = \"מרץ\",נתוני_הפניות[תחזית\n משוקללת],0),\"\"),\"\")","v":""},{"$f":"IFERROR(IF(נתוני_הפניות[[#This Row],[סגירת\n תחזית]] <>\"\",IF(נתוני_הפניות[[#This Row],[סגירת\n תחזית]] = \"תחזית\",נתוני_הפניות[תחזית\n משוקללת],0),\"\"),\"\")","v":""},{"$f":"IFERROR(IF(נתוני_הפניות[[#This Row],[סגירת\n תחזית]] <>\"\",IF(נתוני_הפניות[[#This Row],[סגירת\n תחזית]] = \"תחזית\",נתוני_הפניות[תחזית\n משוקללת],0),\"\"),\"\")","v":""},{"$f":"IFERROR(IF(נתוני_הפניות[[#This Row],[סגירת\n תחזית]] <>\"\",IF(נתוני_הפניות[[#This Row],[סגירת\n תחזית]] = \"תחזית\",נתוני_הפניות[תחזית\n משוקללת],0),\"\"),\"\")","v":""},{"$f":"IFERROR(IF(נתוני_הפניות[[#This Row],[סגירת\n תחזית]] <>\"\",IF(נתוני_הפניות[[#This Row],[סגירת\n תחזית]] = \"July\",נתוני_הפניות[תחזית\n משוקללת],0),\"\"),\"\")","v":""},{"$f":"IFERROR(IF(נתוני_הפניות[[#This Row],[סגירת\n תחזית]] <>\"\",IF(נתוני_הפניות[[#This Row],[סגירת\n תחזית]] = \"תחזית\",נתוני_הפניות[תחזית\n משוקללת],0),\"\"),\"\")","v":""},{"$f":"IFERROR(IF(נתוני_הפניות[[#This Row],[סגירת\n תחזית]] <>\"\",IF(נתוני_הפניות[[#This Row],[סגירת\n תחזית]] = \"תחזית\",נתוני_הפניות[תחזית\n משוקללת],0),\"\"),\"\")","v":""},{"$f":"IFERROR(IF(נתוני_הפניות[[#This Row],[סגירת\n תחזית]] <>\"\",IF(נתוני_הפניות[[#This Row],[סגירת\n תחזית]] = \"תחזית\",נתוני_הפניות[תחזית\n משוקללת],0),\"\"),\"\")","v":""},{"$f":"IFERROR(IF(נתוני_הפניות[[#This Row],[סגירת\n תחזית]] <>\"\",IF(נתוני_הפניות[[#This Row],[סגירת\n תחזית]] = \"תחזית\",נתוני_הפניות[תחזית\n משוקללת],0),\"\"),\"\")","v":""},{"$f":"IFERROR(IF(נתוני_הפניות[[#This Row],[סגירת\n תחזית]] <>\"\",IF(נתוני_הפניות[[#This Row],[סגירת\n תחזית]] = \"תחזית\",נתוני_הפניות[תחזית\n משוקללת],0),\"\"),\"\")","v":""}]
[null,{"$f":"IFERROR(IF(AND(נתוני_הפניות[[#This Row],[שם הפניה]] <> \"\", ROW(מכירות_חזויות[שם הפניה])<>LastEntry),נתוני_הפניות[שם הפניה], \"\"),\"\")","v":""},{"$f":"IFERROR(IF(נתוני_הפניות[[#This Row],[סגירת\n תחזית]] <>\"\",IF(נתוני_הפניות[[#This Row],[סגירת\n תחזית]]= \"ינואר\",נתוני_הפניות[תחזית\n משוקללת],0),\"\"),\"\")","v":""},{"$f":"IFERROR(IF(נתוני_הפניות[[#This Row],[סגירת\n תחזית]] <>\"\",IF(נתוני_הפניות[[#This Row],[סגירת\n תחזית]] = \"פברואר\",נתוני_הפניות[תחזית\n משוקללת],0),\"\"),\"\")","v":""},{"$f":"IFERROR(IF(נתוני_הפניות[[#This Row],[סגירת\n תחזית]] <>\"\",IF(נתוני_הפניות[[#This Row],[סגירת\n תחזית]] = \"מרץ\",נתוני_הפניות[תחזית\n משוקללת],0),\"\"),\"\")","v":""},{"$f":"IFERROR(IF(נתוני_הפניות[[#This Row],[סגירת\n תחזית]] <>\"\",IF(נתוני_הפניות[[#This Row],[סגירת\n תחזית]] = \"תחזית\",נתוני_הפניות[תחזית\n משוקללת],0),\"\"),\"\")","v":""},{"$f":"IFERROR(IF(נתוני_הפניות[[#This Row],[סגירת\n תחזית]] <>\"\",IF(נתוני_הפניות[[#This Row],[סגירת\n תחזית]] = \"תחזית\",נתוני_הפניות[תחזית\n משוקללת],0),\"\"),\"\")","v":""},{"$f":"IFERROR(IF(נתוני_הפניות[[#This Row],[סגירת\n תחזית]] <>\"\",IF(נתוני_הפניות[[#This Row],[סגירת\n תחזית]] = \"תחזית\",נתוני_הפניות[תחזית\n משוקללת],0),\"\"),\"\")","v":""},{"$f":"IFERROR(IF(נתוני_הפניות[[#This Row],[סגירת\n תחזית]] <>\"\",IF(נתוני_הפניות[[#This Row],[סגירת\n תחזית]] = \"July\",נתוני_הפניות[תחזית\n משוקללת],0),\"\"),\"\")","v":""},{"$f":"IFERROR(IF(נתוני_הפניות[[#This Row],[סגירת\n תחזית]] <>\"\",IF(נתוני_הפניות[[#This Row],[סגירת\n תחזית]] = \"תחזית\",נתוני_הפניות[תחזית\n משוקללת],0),\"\"),\"\")","v":""},{"$f":"IFERROR(IF(נתוני_הפניות[[#This Row],[סגירת\n תחזית]] <>\"\",IF(נתוני_הפניות[[#This Row],[סגירת\n תחזית]] = \"תחזית\",נתוני_הפניות[תחזית\n משוקללת],0),\"\"),\"\")","v":""},{"$f":"IFERROR(IF(נתוני_הפניות[[#This Row],[סגירת\n תחזית]] <>\"\",IF(נתוני_הפניות[[#This Row],[סגירת\n תחזית]] = \"תחזית\",נתוני_הפניות[תחזית\n משוקללת],0),\"\"),\"\")","v":""},{"$f":"IFERROR(IF(נתוני_הפניות[[#This Row],[סגירת\n תחזית]] <>\"\",IF(נתוני_הפניות[[#This Row],[סגירת\n תחזית]] = \"תחזית\",נתוני_הפניות[תחזית\n משוקללת],0),\"\"),\"\")","v":""},{"$f":"IFERROR(IF(נתוני_הפניות[[#This Row],[סגירת\n תחזית]] <>\"\",IF(נתוני_הפניות[[#This Row],[סגירת\n תחזית]] = \"תחזית\",נתוני_הפניות[תחזית\n משוקללת],0),\"\"),\"\")","v":""}]
[null,{"$f":"IFERROR(IF(AND(נתוני_הפניות[[#This Row],[שם הפניה]] <> \"\", ROW(מכירות_חזויות[שם הפניה])<>LastEntry),נתוני_הפניות[שם הפניה], \"\"),\"\")","v":""},{"$f":"IFERROR(IF(נתוני_הפניות[[#This Row],[סגירת\n תחזית]] <>\"\",IF(נתוני_הפניות[[#This Row],[סגירת\n תחזית]]= \"ינואר\",נתוני_הפניות[תחזית\n משוקללת],0),\"\"),\"\")","v":""},{"$f":"IFERROR(IF(נתוני_הפניות[[#This Row],[סגירת\n תחזית]] <>\"\",IF(נתוני_הפניות[[#This Row],[סגירת\n תחזית]] = \"פברואר\",נתוני_הפניות[תחזית\n משוקללת],0),\"\"),\"\")","v":""},{"$f":"IFERROR(IF(נתוני_הפניות[[#This Row],[סגירת\n תחזית]] <>\"\",IF(נתוני_הפניות[[#This Row],[סגירת\n תחזית]] = \"מרץ\",נתוני_הפניות[תחזית\n משוקללת],0),\"\"),\"\")","v":""},{"$f":"IFERROR(IF(נתוני_הפניות[[#This Row],[סגירת\n תחזית]] <>\"\",IF(נתוני_הפניות[[#This Row],[סגירת\n תחזית]] = \"תחזית\",נתוני_הפניות[תחזית\n משוקללת],0),\"\"),\"\")","v":""},{"$f":"IFERROR(IF(נתוני_הפניות[[#This Row],[סגירת\n תחזית]] <>\"\",IF(נתוני_הפניות[[#This Row],[סגירת\n תחזית]] = \"תחזית\",נתוני_הפניות[תחזית\n משוקללת],0),\"\"),\"\")","v":""},{"$f":"IFERROR(IF(נתוני_הפניות[[#This Row],[סגירת\n תחזית]] <>\"\",IF(נתוני_הפניות[[#This Row],[סגירת\n תחזית]] = \"תחזית\",נתוני_הפניות[תחזית\n משוקללת],0),\"\"),\"\")","v":""},{"$f":"IFERROR(IF(נתוני_הפניות[[#This Row],[סגירת\n תחזית]] <>\"\",IF(נתוני_הפניות[[#This Row],[סגירת\n תחזית]] = \"July\",נתוני_הפניות[תחזית\n משוקללת],0),\"\"),\"\")","v":""},{"$f":"IFERROR(IF(נתוני_הפניות[[#This Row],[סגירת\n תחזית]] <>\"\",IF(נתוני_הפניות[[#This Row],[סגירת\n תחזית]] = \"תחזית\",נתוני_הפניות[תחזית\n משוקללת],0),\"\"),\"\")","v":""},{"$f":"IFERROR(IF(נתוני_הפניות[[#This Row],[סגירת\n תחזית]] <>\"\",IF(נתוני_הפניות[[#This Row],[סגירת\n תחזית]] = \"תחזית\",נתוני_הפניות[תחזית\n משוקללת],0),\"\"),\"\")","v":""},{"$f":"IFERROR(IF(נתוני_הפניות[[#This Row],[סגירת\n תחזית]] <>\"\",IF(נתוני_הפניות[[#This Row],[סגירת\n תחזית]] = \"תחזית\",נתוני_הפניות[תחזית\n משוקללת],0),\"\"),\"\")","v":""},{"$f":"IFERROR(IF(נתוני_הפניות[[#This Row],[סגירת\n תחזית]] <>\"\",IF(נתוני_הפניות[[#This Row],[סגירת\n תחזית]] = \"תחזית\",נתוני_הפניות[תחזית\n משוקללת],0),\"\"),\"\")","v":""},{"$f":"IFERROR(IF(נתוני_הפניות[[#This Row],[סגירת\n תחזית]] <>\"\",IF(נתוני_הפניות[[#This Row],[סגירת\n תחזית]] = \"תחזית\",נתוני_הפניות[תחזית\n משוקללת],0),\"\"),\"\")","v":""}]
[null,{"$f":"IFERROR(IF(AND(נתוני_הפניות[[#This Row],[שם הפניה]] <> \"\", ROW(מכירות_חזויות[שם הפניה])<>LastEntry),נתוני_הפניות[שם הפניה], \"\"),\"\")","v":""},{"$f":"IFERROR(IF(נתוני_הפניות[[#This Row],[סגירת\n תחזית]] <>\"\",IF(נתוני_הפניות[[#This Row],[סגירת\n תחזית]]= \"ינואר\",נתוני_הפניות[תחזית\n משוקללת],0),\"\"),\"\")","v":""},{"$f":"IFERROR(IF(נתוני_הפניות[[#This Row],[סגירת\n תחזית]] <>\"\",IF(נתוני_הפניות[[#This Row],[סגירת\n תחזית]] = \"פברואר\",נתוני_הפניות[תחזית\n משוקללת],0),\"\"),\"\")","v":""},{"$f":"IFERROR(IF(נתוני_הפניות[[#This Row],[סגירת\n תחזית]] <>\"\",IF(נתוני_הפניות[[#This Row],[סגירת\n תחזית]] = \"מרץ\",נתוני_הפניות[תחזית\n משוקללת],0),\"\"),\"\")","v":""},{"$f":"IFERROR(IF(נתוני_הפניות[[#This Row],[סגירת\n תחזית]] <>\"\",IF(נתוני_הפניות[[#This Row],[סגירת\n תחזית]] = \"תחזית\",נתוני_הפניות[תחזית\n משוקללת],0),\"\"),\"\")","v":""},{"$f":"IFERROR(IF(נתוני_הפניות[[#This Row],[סגירת\n תחזית]] <>\"\",IF(נתוני_הפניות[[#This Row],[סגירת\n תחזית]] = \"תחזית\",נתוני_הפניות[תחזית\n משוקללת],0),\"\"),\"\")","v":""},{"$f":"IFERROR(IF(נתוני_הפניות[[#This Row],[סגירת\n תחזית]] <>\"\",IF(נתוני_הפניות[[#This Row],[סגירת\n תחזית]] = \"תחזית\",נתוני_הפניות[תחזית\n משוקללת],0),\"\"),\"\")","v":""},{"$f":"IFERROR(IF(נתוני_הפניות[[#This Row],[סגירת\n תחזית]] <>\"\",IF(נתוני_הפניות[[#This Row],[סגירת\n תחזית]] = \"July\",נתוני_הפניות[תחזית\n משוקללת],0),\"\"),\"\")","v":""},{"$f":"IFERROR(IF(נתוני_הפניות[[#This Row],[סגירת\n תחזית]] <>\"\",IF(נתוני_הפניות[[#This Row],[סגירת\n תחזית]] = \"תחזית\",נתוני_הפניות[תחזית\n משוקללת],0),\"\"),\"\")","v":""},{"$f":"IFERROR(IF(נתוני_הפניות[[#This Row],[סגירת\n תחזית]] <>\"\",IF(נתוני_הפניות[[#This Row],[סגירת\n תחזית]] = \"תחזית\",נתוני_הפניות[תחזית\n משוקללת],0),\"\"),\"\")","v":""},{"$f":"IFERROR(IF(נתוני_הפניות[[#This Row],[סגירת\n תחזית]] <>\"\",IF(נתוני_הפניות[[#This Row],[סגירת\n תחזית]] = \"תחזית\",נתוני_הפניות[תחזית\n משוקללת],0),\"\"),\"\")","v":""},{"$f":"IFERROR(IF(נתוני_הפניות[[#This Row],[סגירת\n תחזית]] <>\"\",IF(נתוני_הפניות[[#This Row],[סגירת\n תחזית]] = \"תחזית\",נתוני_הפניות[תחזית\n משוקללת],0),\"\"),\"\")","v":""},{"$f":"IFERROR(IF(נתוני_הפניות[[#This Row],[סגירת\n תחזית]] <>\"\",IF(נתוני_הפניות[[#This Row],[סגירת\n תחזית]] = \"תחזית\",נתוני_הפניות[תחזית\n משוקללת],0),\"\"),\"\")","v":""}]
[null,"סה\"כ",{"$f":"SUBTOTAL(109,מכירות_חזויות[תחזית \nינואר])","v":{"v":270000,"d":"₪ 270,000"}},{"$f":"SUBTOTAL(109,מכירות_חזויות[תחזית \nפברואר])","v":{"v":20000,"d":"₪ 20,000"}},{"$f":"SUBTOTAL(109,מכירות_חזויות[תחזית \nמרץ])","v":{"v":20000,"d":"₪ 20,000"}},{"$f":"SUBTOTAL(109,מכירות_חזויות[תחזית \nאפריל])","v":{"v":0,"d":"₪ 0"}},{"$f":"SUBTOTAL(109,מכירות_חזויות[תחזית \nמאי])","v":{"v":0,"d":"₪ 0"}},{"$f":"SUBTOTAL(109,מכירות_חזויות[תחזית \nיוני])","v":{"v":0,"d":"₪ 0"}},{"$f":"SUBTOTAL(109,מכירות_חזויות[תחזית \nיולי])","v":{"v":0,"d":"₪ 0"}},{"$f":"SUBTOTAL(109,מכירות_חזויות[תחזית \nאוגוסט])","v":{"v":0,"d":"₪ 0"}},{"$f":"SUBTOTAL(109,מכירות_חזויות[תחזית \nספטמבר])","v":{"v":0,"d":"₪ 0"}},{"$f":"SUBTOTAL(109,מכירות_חזויות[תחזית \nאוקטובר])","v":{"v":0,"d":"₪ 0"}},{"$f":"SUBTOTAL(109,מכירות_חזויות[תחזית \nנובמבר])","v":{"v":0,"d":"₪ 0"}},{"$f":"SUBTOTAL(109,מכירות_חזויות[תחזית \nדצמבר])","v":{"v":0,"d":"₪ 0"}}]
[null,"סך מצטבר",{"$f":"C20","v":{"v":270000,"d":"₪ 270,000"}},{"$f":"C21+D20","v":{"v":290000,"d":"₪ 290,000"}},{"$f":"D21+E20","v":{"v":310000,"d":"₪ 310,000"}},{"$f":"E21+F20","v":{"v":310000,"d":"₪ 310,000"}},{"$f":"F21+G20","v":{"v":310000,"d":"₪ 310,000"}},{"$f":"G21+H20","v":{"v":310000,"d":"₪ 310,000"}},{"$f":"H21+I20","v":{"v":310000,"d":"₪ 310,000"}},{"$f":"I21+J20","v":{"v":310000,"d":"₪ 310,000"}},{"$f":"J21+K20","v":{"v":310000,"d":"₪ 310,000"}},{"$f":"K21+L20","v":{"v":310000,"d":"₪ 310,000"}},{"$f":"L21+M20","v":{"v":310000,"d":"₪ 310,000"}},{"$f":"M21+N20","v":{"v":310000,"d":"₪ 310,000"}}]

{"sheet":"תחזית משוקללת חודשית","index":2,"n_rows":3,"n_cols":2,"rows_kept":3}
[null,{"$f":"שם_החברה","v":"שם החברה"}]
[null,"תחזית משוקללת חודשית"]
[null," "]